[Event "Titled Tuesday Blitz August 16 Early 2022"]
[White "Perez Gormaz, Matias"]
[Black "Samadov, Read"]
[WhiteFideId "3406342"]
[BlackFideId "13417444"]
[WhiteElo "2341"]
[BlackElo "2084"]
[Result "0-1"]
[Round "03"]
[TimeControl "180+1"]
[Date "2022.08.16"]
[WhiteClock "0:00:11"]
[BlackClock "0:00:18"]

1. e4 {[%clk 0:03:00]}  c5 {[%clk 0:02:59]} 2. Nf3 {[%clk 0:03:01]}  d6 {[%clk 0:02:58]} 3. d4 {[%clk 0:03:00]}  cxd4 {[%clk 0:02:59]} 4. Nxd4 {[%clk 0:03:01]}  Nf6 {[%clk 0:02:59]} 5. Nc3 {[%clk 0:03:02]}  a6 {[%clk 0:03:00]} 6. Be3 {[%clk 0:03:02]}  e5 {[%clk 0:02:59]} 7. Nf3 {[%clk 0:03:03]}  Be7 {[%clk 0:02:59]} 8. Bc4 {[%clk 0:03:02]}  O-O {[%clk 0:02:59]} 9. O-O {[%clk 0:03:02]}  Be6 {[%clk 0:02:59]} 10. Bb3 {[%clk 0:03:00]}  Nc6 {[%clk 0:03:00]} 11. Bg5 {[%clk 0:02:52]}  Nd7 {[%clk 0:02:59]} 12. Bxe7 {[%clk 0:02:46]}  Qxe7 {[%clk 0:02:59]} 13. Nd5 {[%clk 0:02:46]}  Qd8 {[%clk 0:02:59]} 14. c3 {[%clk 0:02:45]}  Nc5 {[%clk 0:02:56]} 15. Bc2 {[%clk 0:02:45]}  Kh8 {[%clk 0:02:56]} 16. Ne3 {[%clk 0:02:43]}  a5 {[%clk 0:02:50]} 17. Qd2 {[%clk 0:02:40]}  Qb6 {[%clk 0:02:38]} 18. b3 {[%clk 0:02:32]}  Rad8 {[%clk 0:02:31]} 19. Rad1 {[%clk 0:02:29]}  h6 {[%clk 0:02:14]} 20. Nh4 {[%clk 0:02:25]}  Ne7 {[%clk 0:02:11]} 21. Qe2 {[%clk 0:02:12]}  Qc6 {[%clk 0:02:02]} 22. Qf3 {[%clk 0:02:03]}  b5 {[%clk 0:01:56]} 23. Rd2 {[%clk 0:01:56]}  Nd7 {[%clk 0:01:52]} 24. Rfd1 {[%clk 0:01:34]}  Nf6 {[%clk 0:01:49]} 25. h3 {[%clk 0:00:35]}  Qxc3 {[%clk 0:01:29]} 26. Rxd6 {[%clk 0:00:34]}  Qc7 {[%clk 0:01:26]} 27. Rxd8 {[%clk 0:00:26]}  Rxd8 {[%clk 0:01:27]} 28. Qe2 {[%clk 0:00:26]}  b4 {[%clk 0:01:18]} 29. Nf3 {[%clk 0:00:26]}  Ng6 {[%clk 0:01:16]} 30. g3 {[%clk 0:00:25]}  Bxh3 {[%clk 0:01:08]} 31. Rxd8+ {[%clk 0:00:24]}  Qxd8 {[%clk 0:01:08]} 32. Qb5 {[%clk 0:00:25]}  Qc7 {[%clk 0:01:02]} 33. Nc4 {[%clk 0:00:24]}  Nd7 {[%clk 0:00:25]} 34. Qxa5 {[%clk 0:00:24]}  Qb8 {[%clk 0:00:22]} 35. Qa6 {[%clk 0:00:11]}  Be6 {[%clk 0:00:22]} 36. Nd6 {[%clk 0:00:11]}  Kh7 {[%clk 0:00:19]} 37. Bd3 {[%clk 0:00:11]}  Qc7 {[%clk 0:00:19]} 38. Bc4 {[%clk 0:00:11]}  Nc5 {[%clk 0:00:18]} 0-1


[Site "https://www.chess.com"]

[Event "Titled Tuesday Blitz August 16 Early 2022"]
[White "Perez Ponsa, Federico"]
[Black "Ginzburg, Yakov"]
[WhiteFideId "117927"]
[BlackFideId "4157176"]
[WhiteElo "2604"]
[BlackElo "2265"]
[Result "1-0"]
[Round "03"]
[TimeControl "180+2"]
[Date "2022.08.18"]
[WhiteClock "0:00:00"]
[BlackClock "0:00:00"]

1. d4 {[%clk 0:00:00]}  d5 {[%clk 0:00:00]} 2. Bf4 {[%clk 0:00:00]}  g6 {[%clk 0:00:00]} 3. Nf3 {[%clk 0:00:00]}  Bg7 {[%clk 0:00:00]} 4. e3 {[%clk 0:00:00]}  Nf6 {[%clk 0:00:00]} 5. Be2 {[%clk 0:00:00]}  O-O {[%clk 0:00:00]} 6. O-O {[%clk 0:00:00]}  c6 {[%clk 0:00:00]} 7. c4 {[%clk 0:00:00]}  Bg4 {[%clk 0:00:00]} 8. cxd5 {[%clk 0:00:00]}  Nxd5 {[%clk 0:00:00]} 9. Bg3 {[%clk 0:00:00]}  Nd7 {[%clk 0:00:00]} 10. Nc3 {[%clk 0:00:00]}  N7b6 {[%clk 0:00:00]} 11. h3 {[%clk 0:00:00]}  Bf5 {[%clk 0:00:00]} 12. a4 {[%clk 0:00:00]}  a5 {[%clk 0:00:00]} 13. Ne5 {[%clk 0:00:00]}  Rc8 {[%clk 0:00:00]} 14. Qb3 {[%clk 0:00:00]}  Be6 {[%clk 0:00:00]} 15. Qc2 {[%clk 0:00:00]}  Nb4 {[%clk 0:00:00]} 16. Qe4 {[%clk 0:00:00]}  Bb3 {[%clk 0:00:00]} 17. Rfc1 {[%clk 0:00:00]}  N6d5 {[%clk 0:00:00]} 18. Bf1 {[%clk 0:00:00]}  e6 {[%clk 0:00:00]} 19. h4 {[%clk 0:00:00]}  h5 {[%clk 0:00:00]} 20. Ne2 {[%clk 0:00:00]}  Nf6 {[%clk 0:00:00]} 21. Qb1 {[%clk 0:00:00]}  Bd5 {[%clk 0:00:00]} 22. Nc3 {[%clk 0:00:00]}  c5 {[%clk 0:00:00]} 23. Nxd5 {[%clk 0:00:00]}  Qxd5 {[%clk 0:00:00]} 24. Bc4 {[%clk 0:00:00]}  Qd8 {[%clk 0:00:00]} 25. Rd1 {[%clk 0:00:00]}  cxd4 {[%clk 0:00:00]} 26. Rxd4 {[%clk 0:00:00]}  Qb6 {[%clk 0:00:00]} 27. Nxg6 {[%clk 0:00:00]}  fxg6 {[%clk 0:00:00]} 28. Qxg6 {[%clk 0:00:00]}  Nbd5 {[%clk 0:00:00]} 29. Rad1 {[%clk 0:00:00]}  Ne8 {[%clk 0:00:00]} 30. e4 {[%clk 0:00:00]}  Qxb2 {[%clk 0:00:00]} 31. exd5 {[%clk 0:00:00]}  Rxc4 {[%clk 0:00:00]} 32. Rxc4 {[%clk 0:00:00]}  Qe2 {[%clk 0:00:00]} 33. Qxe6+ {[%clk 0:00:00]}  Qxe6 {[%clk 0:00:00]} 34. dxe6 {[%clk 0:00:00]}  Nf6 {[%clk 0:00:00]} 35. Rc7 {[%clk 0:00:00]}  Re8 {[%clk 0:00:00]} 36. e7 {[%clk 0:00:00]}  Kf7 {[%clk 0:00:00]} 37. Rxb7 {[%clk 0:00:00]}  Ng4 {[%clk 0:00:00]} 38. Rd8 {[%clk 0:00:00]}  Rxe7 {[%clk 0:00:00]} 39. Rxe7+ {[%clk 0:00:00]}  Kxe7 {[%clk 0:00:00]} 40. Ra8 {[%clk 0:00:00]}  Bc3 {[%clk 0:00:00]} 41. Bc7 {[%clk 0:00:00]}  Bb4 {[%clk 0:00:00]} 42. Bxa5 {[%clk 0:00:00]}  Bc5 {[%clk 0:00:00]} 43. Be1 {[%clk 0:00:00]}  Ne5 {[%clk 0:00:00]} 44. Rh8 {[%clk 0:00:00]}  Nd3 {[%clk 0:00:00]} 45. Kf1 {[%clk 0:00:00]}  Nxe1 {[%clk 0:00:00]} 46. Kxe1 {[%clk 0:00:00]}  Bd4 {[%clk 0:00:00]} 47. Rh7+ {[%clk 0:00:00]}  Kf6 {[%clk 0:00:00]} 48. Rxh5 {[%clk 0:00:00]}  Bc3+ {[%clk 0:00:00]} 49. Ke2 {[%clk 0:00:00]}  Kg6 {[%clk 0:00:00]} 50. g4 {[%clk 0:00:00]}  Bf6 {[%clk 0:00:00]} 51. Rb5 {[%clk 0:00:00]}  Be7 {[%clk 0:00:00]} 52. f4 {[%clk 0:00:00]}  Bxh4 {[%clk 0:00:00]} 53. Kf3 {[%clk 0:00:00]}  Kf7 {[%clk 0:00:00]} 54. g5 {[%clk 0:00:00]}  Be1 {[%clk 0:00:00]} 55. f5 {[%clk 0:00:00]}  Bc3 {[%clk 0:00:00]} 56. Rb7+ {[%clk 0:00:00]}  Ke8 {[%clk 0:00:00]} 57. Ke4 {[%clk 0:00:00]}  Bd2 {[%clk 0:00:00]} 58. g6 {[%clk 0:00:00]}  Bc3 {[%clk 0:00:00]} 59. g7 {[%clk 0:00:00]}  Bxg7 {[%clk 0:00:00]} 60. Rxg7 {[%clk 0:00:00]} 1-0


[Site "https://www.chess.com"]

[Event "Titled Tuesday Blitz August 16 Early 2022"]
[White "Pham, Le Thao Nguyen"]
[Black "Avalos Parra, Joao"]
[WhiteFideId "12401226"]
[BlackFideId "3402541"]
[WhiteElo "2282"]
[BlackElo "2173"]
[Result "1-0"]
[Round "03"]
[TimeControl "180+2"]
[Date "2022.08.18"]
[WhiteClock "0:00:00"]
[BlackClock "0:00:00"]

1. d4 {[%clk 0:00:00]}  Nf6 {[%clk 0:00:00]} 2. Nf3 {[%clk 0:00:00]}  e6 {[%clk 0:00:00]} 3. c4 {[%clk 0:00:00]}  d5 {[%clk 0:00:00]} 4. Nc3 {[%clk 0:00:00]}  c5 {[%clk 0:00:00]} 5. cxd5 {[%clk 0:00:00]}  Nxd5 {[%clk 0:00:00]} 6. e4 {[%clk 0:00:00]}  Nxc3 {[%clk 0:00:00]} 7. bxc3 {[%clk 0:00:00]}  cxd4 {[%clk 0:00:00]} 8. cxd4 {[%clk 0:00:00]}  Bb4+ {[%clk 0:00:00]} 9. Bd2 {[%clk 0:00:00]}  Bxd2+ {[%clk 0:00:00]} 10. Qxd2 {[%clk 0:00:00]}  O-O {[%clk 0:00:00]} 11. Bc4 {[%clk 0:00:00]}  Nd7 {[%clk 0:00:00]} 12. O-O {[%clk 0:00:00]}  b6 {[%clk 0:00:00]} 13. Rfe1 {[%clk 0:00:00]}  Bb7 {[%clk 0:00:00]} 14. Rad1 {[%clk 0:00:00]}  Rc8 {[%clk 0:00:00]} 15. Bb3 {[%clk 0:00:00]}  Re8 {[%clk 0:00:00]} 16. h3 {[%clk 0:00:00]}  Nf6 {[%clk 0:00:00]} 17. Qf4 {[%clk 0:00:00]}  Qc7 {[%clk 0:00:00]} 18. Ne5 {[%clk 0:00:00]}  Red8 {[%clk 0:00:00]} 19. Re3 {[%clk 0:00:00]}  Qe7 {[%clk 0:00:00]} 20. Nf3 {[%clk 0:00:00]}  Rc7 {[%clk 0:00:00]} 21. d5 {[%clk 0:00:00]}  Rcd7 {[%clk 0:00:00]} 22. Ne5 {[%clk 0:00:00]}  Rd6 {[%clk 0:00:00]} 23. Nxf7 {[%clk 0:00:00]}  Qxf7 {[%clk 0:00:00]} 24. Rdd3 {[%clk 0:00:00]}  Qc7 {[%clk 0:00:00]} 25. dxe6 {[%clk 0:00:00]}  Qc1+ {[%clk 0:00:00]} 26. Kh2 {[%clk 0:00:00]}  Rxd3 {[%clk 0:00:00]} 27. e7+ {[%clk 0:00:00]}  Kh8 {[%clk 0:00:00]} 28. e5 {[%clk 0:00:00]}  Qf1 {[%clk 0:00:00]} 29. Rg3 {[%clk 0:00:00]}  Ng8 {[%clk 0:00:00]} 30. exd8=Q {[%clk 0:00:00]}  Rxd8 {[%clk 0:00:00]} 31. Qf7 {[%clk 0:00:00]} 1-0


[Site "https://www.chess.com"]

[Event "Titled Tuesday Blitz August 16 Early 2022"]
[White "Pinheiro, Iung Alicio de O."]
[Black "Baches Garcia, Guillermo"]
[WhiteFideId "2104350"]
[BlackFideId "2209764"]
[WhiteElo "2283"]
[BlackElo "2326"]
[Result "0-1"]
[Round "03"]
[TimeControl "180+2"]
[Date "2022.08.18"]
[WhiteClock "0:00:00"]
[BlackClock "0:00:00"]

1. e4 {[%clk 0:00:00]}  c5 {[%clk 0:00:00]} 2. Nf3 {[%clk 0:00:00]}  d6 {[%clk 0:00:00]} 3. d4 {[%clk 0:00:00]}  cxd4 {[%clk 0:00:00]} 4. Nxd4 {[%clk 0:00:00]}  Nf6 {[%clk 0:00:00]} 5. Nc3 {[%clk 0:00:00]}  Nc6 {[%clk 0:00:00]} 6. Bg5 {[%clk 0:00:00]}  e6 {[%clk 0:00:00]} 7. Bb5 {[%clk 0:00:00]}  Bd7 {[%clk 0:00:00]} 8. Qd3 {[%clk 0:00:00]}  Be7 {[%clk 0:00:00]} 9. O-O-O {[%clk 0:00:00]}  Nxd4 {[%clk 0:00:00]} 10. Bxd7+ {[%clk 0:00:00]}  Qxd7 {[%clk 0:00:00]} 11. Qxd4 {[%clk 0:00:00]}  Qc6 {[%clk 0:00:00]} 12. f4 {[%clk 0:00:00]}  O-O {[%clk 0:00:00]} 13. Kb1 {[%clk 0:00:00]}  Rfd8 {[%clk 0:00:00]} 14. g4 {[%clk 0:00:00]}  b5 {[%clk 0:00:00]} 15. a3 {[%clk 0:00:00]}  a5 {[%clk 0:00:00]} 16. Rhe1 {[%clk 0:00:00]}  b4 {[%clk 0:00:00]} 17. axb4 {[%clk 0:00:00]}  axb4 {[%clk 0:00:00]} 18. Qxb4 {[%clk 0:00:00]}  Rdb8 {[%clk 0:00:00]} 19. Qd4 {[%clk 0:00:00]}  Qa6 {[%clk 0:00:00]} 20. Kc1 {[%clk 0:00:00]}  Rxb2 {[%clk 0:00:00]} 21. Kd2 {[%clk 0:00:00]}  e5 {[%clk 0:00:00]} 22. Qd3 {[%clk 0:00:00]}  Qb6 {[%clk 0:00:00]} 23. Bxf6 {[%clk 0:00:00]}  Qf2+ {[%clk 0:00:00]} 24. Ne2 {[%clk 0:00:00]}  Bxf6 {[%clk 0:00:00]} 25. Rf1 {[%clk 0:00:00]}  Qc5 {[%clk 0:00:00]} 26. g5 {[%clk 0:00:00]}  Bd8 {[%clk 0:00:00]} 27. Ra1 {[%clk 0:00:00]}  Ba5+ {[%clk 0:00:00]} 28. Kc1 {[%clk 0:00:00]}  Rab8 {[%clk 0:00:00]} 29. Rxa5 {[%clk 0:00:00]}  Qxa5 {[%clk 0:00:00]} 30. Nc3 {[%clk 0:00:00]}  Qa1+ {[%clk 0:00:00]} 31. Kd2 {[%clk 0:00:00]}  Qa5 {[%clk 0:00:00]} 32. fxe5 {[%clk 0:00:00]}  dxe5 {[%clk 0:00:00]} 33. Qd5 {[%clk 0:00:00]}  Rd8 {[%clk 0:00:00]} 34. Kd3 {[%clk 0:00:00]}  Rxd5+ {[%clk 0:00:00]} 35. Nxd5 {[%clk 0:00:00]}  Qa6+ {[%clk 0:00:00]} 36. c4 {[%clk 0:00:00]}  Qa3+ {[%clk 0:00:00]} 37. Nc3 {[%clk 0:00:00]}  Rb3 {[%clk 0:00:00]} 38. Rc1 {[%clk 0:00:00]}  Qxc1 {[%clk 0:00:00]} 0-1


[Site "https://www.chess.com"]

[Event "Titled Tuesday Blitz August 16 Early 2022"]
[White "Ponce Cano, Adrian"]
[Black "Csonka, Balazs"]
[WhiteFideId "22296913"]
[BlackFideId "742910"]
[WhiteElo "2261"]
[BlackElo "2404"]
[Result "0-1"]
[Round "03"]
[TimeControl "180+2"]
[Date "2022.08.18"]
[WhiteClock "0:00:00"]
[BlackClock "0:00:00"]

1. e4 {[%clk 0:00:00]}  e5 {[%clk 0:00:00]} 2. Nf3 {[%clk 0:00:00]}  Nc6 {[%clk 0:00:00]} 3. Nc3 {[%clk 0:00:00]}  Nf6 {[%clk 0:00:00]} 4. Bb5 {[%clk 0:00:00]}  Bd6 {[%clk 0:00:00]} 5. O-O {[%clk 0:00:00]}  O-O {[%clk 0:00:00]} 6. h3 {[%clk 0:00:00]}  Re8 {[%clk 0:00:00]} 7. d3 {[%clk 0:00:00]}  h6 {[%clk 0:00:00]} 8. Re1 {[%clk 0:00:00]}  a6 {[%clk 0:00:00]} 9. Ba4 {[%clk 0:00:00]}  Bf8 {[%clk 0:00:00]} 10. Nd5 {[%clk 0:00:00]}  b5 {[%clk 0:00:00]} 11. Bb3 {[%clk 0:00:00]}  Na5 {[%clk 0:00:00]} 12. c4 {[%clk 0:00:00]}  Nxb3 {[%clk 0:00:00]} 13. axb3 {[%clk 0:00:00]}  c6 {[%clk 0:00:00]} 14. Ne3 {[%clk 0:00:00]}  Bb7 {[%clk 0:00:00]} 15. Nf5 {[%clk 0:00:00]}  d6 {[%clk 0:00:00]} 16. Bd2 {[%clk 0:00:00]}  Bc8 {[%clk 0:00:00]} 17. N3h4 {[%clk 0:00:00]}  Be6 {[%clk 0:00:00]} 18. Qf3 {[%clk 0:00:00]}  Nh7 {[%clk 0:00:00]} 19. Qg3 {[%clk 0:00:00]}  Ng5 {[%clk 0:00:00]} 20. Re2 {[%clk 0:00:00]}  g6 {[%clk 0:00:00]} 21. Ne3 {[%clk 0:00:00]}  Bg7 {[%clk 0:00:00]} 22. Rae1 {[%clk 0:00:00]}  Kh7 {[%clk 0:00:00]} 23. Nc2 {[%clk 0:00:00]}  d5 {[%clk 0:00:00]} 24. f4 {[%clk 0:00:00]}  exf4 {[%clk 0:00:00]} 25. Bxf4 {[%clk 0:00:00]}  dxe4 {[%clk 0:00:00]} 26. dxe4 {[%clk 0:00:00]}  bxc4 {[%clk 0:00:00]} 27. bxc4 {[%clk 0:00:00]}  Bxc4 {[%clk 0:00:00]} 28. Rd2 {[%clk 0:00:00]}  Qe7 {[%clk 0:00:00]} 29. e5 {[%clk 0:00:00]}  Rad8 {[%clk 0:00:00]} 30. Rf2 {[%clk 0:00:00]}  Be6 {[%clk 0:00:00]} 31. Kh2 {[%clk 0:00:00]}  Kh8 {[%clk 0:00:00]} 32. Nf3 {[%clk 0:00:00]}  Nxf3+ {[%clk 0:00:00]} 33. gxf3 {[%clk 0:00:00]}  Rd5 {[%clk 0:00:00]} 34. h4 {[%clk 0:00:00]}  Rb5 {[%clk 0:00:00]} 35. Nd4 {[%clk 0:00:00]}  Rc5 {[%clk 0:00:00]} 36. b4 {[%clk 0:00:00]}  Rc4 {[%clk 0:00:00]} 37. Nc2 {[%clk 0:00:00]}  c5 {[%clk 0:00:00]} 38. bxc5 {[%clk 0:00:00]}  Rxc5 {[%clk 0:00:00]} 39. Rfe2 {[%clk 0:00:00]}  a5 {[%clk 0:00:00]} 40. Qf2 {[%clk 0:00:00]}  a4 {[%clk 0:00:00]} 41. Qe3 {[%clk 0:00:00]}  Rc4 {[%clk 0:00:00]} 42. Nd4 {[%clk 0:00:00]}  Qxh4+ {[%clk 0:00:00]} 43. Kg2 {[%clk 0:00:00]}  g5 {[%clk 0:00:00]} 44. Nxe6 {[%clk 0:00:00]}  gxf4 {[%clk 0:00:00]} 45. Qa7 {[%clk 0:00:00]}  Rxe6 {[%clk 0:00:00]} 46. Re4 {[%clk 0:00:00]}  Rg6+ {[%clk 0:00:00]} 47. Kf1 {[%clk 0:00:00]}  Qh1+ {[%clk 0:00:00]} 48. Ke2 {[%clk 0:00:00]}  Rxe4+ {[%clk 0:00:00]} 49. fxe4 {[%clk 0:00:00]}  Qxe4+ {[%clk 0:00:00]} 50. Kd1 {[%clk 0:00:00]}  Qd3+ {[%clk 0:00:00]} 51. Kc1 {[%clk 0:00:00]}  Rc6+ {[%clk 0:00:00]} 52. Kb2 {[%clk 0:00:00]}  Rc2+ {[%clk 0:00:00]} 53. Ka1 {[%clk 0:00:00]}  Qa3+ {[%clk 0:00:00]} 54. Kb1 {[%clk 0:00:00]}  Qb2# {[%clk 0:00:00]} 0-1


[Site "https://www.chess.com"]

[Event "Titled Tuesday Blitz August 16 Early 2022"]
[White "Popilski, Gil"]
[Black "Zhigalko, Sergei"]
[WhiteFideId "2809060"]
[BlackFideId "13502956"]
[WhiteElo "2537"]
[BlackElo "2662"]
[Result "1-0"]
[Round "03"]
[TimeControl "180+1"]
[Date "2022.08.16"]
[WhiteClock "0:00:28"]
[BlackClock "0:00:15"]

1. e4 {[%clk 0:01:50]}  c5 {[%clk 0:02:59]} 2. Nf3 {[%clk 0:01:48]}  Nc6 {[%clk 0:03:00]} 3. d4 {[%clk 0:01:49]}  cxd4 {[%clk 0:03:01]} 4. Nxd4 {[%clk 0:01:49]}  Nf6 {[%clk 0:03:01]} 5. Nc3 {[%clk 0:01:49]}  e5 {[%clk 0:03:02]} 6. Ndb5 {[%clk 0:01:49]}  d6 {[%clk 0:03:02]} 7. Bg5 {[%clk 0:01:50]}  a6 {[%clk 0:03:03]} 8. Na3 {[%clk 0:01:49]}  b5 {[%clk 0:03:03]} 9. Nd5 {[%clk 0:01:49]}  Be7 {[%clk 0:03:03]} 10. Bxf6 {[%clk 0:01:50]}  Bxf6 {[%clk 0:03:01]} 11. c4 {[%clk 0:01:50]}  b4 {[%clk 0:02:59]} 12. Nc2 {[%clk 0:01:50]}  O-O {[%clk 0:02:56]} 13. g3 {[%clk 0:01:49]}  a5 {[%clk 0:02:55]} 14. h4 {[%clk 0:01:50]}  Be6 {[%clk 0:02:39]} 15. Bh3 {[%clk 0:01:49]}  a4 {[%clk 0:02:36]} 16. Bxe6 {[%clk 0:01:39]}  fxe6 {[%clk 0:02:36]} 17. Ndxb4 {[%clk 0:01:39]}  Nxb4 {[%clk 0:02:23]} 18. Nxb4 {[%clk 0:01:40]}  Qb6 {[%clk 0:02:18]} 19. Qd2 {[%clk 0:01:33]}  Be7 {[%clk 0:02:16]} 20. a3 {[%clk 0:01:26]}  Rf3 {[%clk 0:02:13]} 21. Nd5 {[%clk 0:00:35]}  Qb7 {[%clk 0:01:47]} 22. Nxe7+ {[%clk 0:00:34]}  Qxe7 {[%clk 0:01:45]} 23. O-O {[%clk 0:00:34]}  Ra6 {[%clk 0:01:21]} 24. Rac1 {[%clk 0:00:33]}  h6 {[%clk 0:01:13]} 25. c5 {[%clk 0:00:33]}  dxc5 {[%clk 0:01:14]} 26. Qe2 {[%clk 0:00:33]}  Rb6 {[%clk 0:00:21]} 27. Qxf3 {[%clk 0:00:33]}  Rxb2 {[%clk 0:00:22]} 28. Rc4 {[%clk 0:00:32]}  Kh7 {[%clk 0:00:19]} 29. Rxa4 {[%clk 0:00:31]}  Qb7 {[%clk 0:00:16]} 30. Qg4 {[%clk 0:00:30]}  Qb3 {[%clk 0:00:15]} 31. Ra7 {[%clk 0:00:28]} 1-0


[Site "https://www.chess.com"]

[Event "Titled Tuesday Blitz August 16 Early 2022"]
[White "Rios Escobar, Adan"]
[Black "Yaksin, Oleg"]
[WhiteFideId "3403645"]
[BlackFideId "24105880"]
[WhiteElo "2276"]
[BlackElo "2256"]
[Result "1-0"]
[Round "03"]
[TimeControl "180+2"]
[Date "2022.08.18"]
[WhiteClock "0:00:00"]
[BlackClock "0:00:00"]

1. d4 {[%clk 0:00:00]}  Nf6 {[%clk 0:00:00]} 2. g3 {[%clk 0:00:00]}  e6 {[%clk 0:00:00]} 3. c4 {[%clk 0:00:00]}  d5 {[%clk 0:00:00]} 4. Nf3 {[%clk 0:00:00]}  Be7 {[%clk 0:00:00]} 5. Bg2 {[%clk 0:00:00]}  O-O {[%clk 0:00:00]} 6. O-O {[%clk 0:00:00]}  c6 {[%clk 0:00:00]} 7. Qc2 {[%clk 0:00:00]}  Nbd7 {[%clk 0:00:00]} 8. Nbd2 {[%clk 0:00:00]}  b6 {[%clk 0:00:00]} 9. e4 {[%clk 0:00:00]}  Bb7 {[%clk 0:00:00]} 10. e5 {[%clk 0:00:00]}  Ne8 {[%clk 0:00:00]} 11. cxd5 {[%clk 0:00:00]}  cxd5 {[%clk 0:00:00]} 12. Rd1 {[%clk 0:00:00]}  Qc7 {[%clk 0:00:00]} 13. Qd3 {[%clk 0:00:00]}  Rc8 {[%clk 0:00:00]} 14. Ne1 {[%clk 0:00:00]}  Nb8 {[%clk 0:00:00]} 15. h4 {[%clk 0:00:00]}  Ba6 {[%clk 0:00:00]} 16. Qe3 {[%clk 0:00:00]}  Nc6 {[%clk 0:00:00]} 17. Ndf3 {[%clk 0:00:00]}  Na5 {[%clk 0:00:00]} 18. Qf4 {[%clk 0:00:00]}  Bb4 {[%clk 0:00:00]} 19. Bd2 {[%clk 0:00:00]}  Bxd2 {[%clk 0:00:00]} 20. Rxd2 {[%clk 0:00:00]}  Qd7 {[%clk 0:00:00]} 21. h5 {[%clk 0:00:00]}  Nc4 {[%clk 0:00:00]} 22. Rc2 {[%clk 0:00:00]}  b5 {[%clk 0:00:00]} 23. h6 {[%clk 0:00:00]}  g6 {[%clk 0:00:00]} 24. Rac1 {[%clk 0:00:00]}  Nb6 {[%clk 0:00:00]} 25. Rxc8 {[%clk 0:00:00]}  Bxc8 {[%clk 0:00:00]} 26. Bf1 {[%clk 0:00:00]}  a6 {[%clk 0:00:00]} 27. Nd3 {[%clk 0:00:00]}  Qe7 {[%clk 0:00:00]} 28. Rc6 {[%clk 0:00:00]}  Qb7 {[%clk 0:00:00]} 29. Qc1 {[%clk 0:00:00]}  Nc4 {[%clk 0:00:00]} 30. Rc5 {[%clk 0:00:00]}  Bd7 {[%clk 0:00:00]} 31. b3 {[%clk 0:00:00]}  Nb6 {[%clk 0:00:00]} 32. Nb4 {[%clk 0:00:00]}  Qa8 {[%clk 0:00:00]} 33. Nc6 {[%clk 0:00:00]}  Bxc6 {[%clk 0:00:00]} 34. Rxc6 {[%clk 0:00:00]}  Qb7 {[%clk 0:00:00]} 35. Nh2 {[%clk 0:00:00]}  Na8 {[%clk 0:00:00]} 36. Ng4 {[%clk 0:00:00]}  Qe7 {[%clk 0:00:00]} 37. Rc8 {[%clk 0:00:00]}  Nac7 {[%clk 0:00:00]} 38. Qc6 {[%clk 0:00:00]}  Kh8 {[%clk 0:00:00]} 39. Nf6 {[%clk 0:00:00]}  a5 {[%clk 0:00:00]} 40. Bxb5 {[%clk 0:00:00]}  Nxb5 {[%clk 0:00:00]} 41. Qxb5 {[%clk 0:00:00]}  Nxf6 {[%clk 0:00:00]} 42. exf6 {[%clk 0:00:00]}  Qd6 {[%clk 0:00:00]} 43. Rxf8+ {[%clk 0:00:00]}  Qxf8 {[%clk 0:00:00]} 44. Qxa5 {[%clk 0:00:00]}  Kg8 {[%clk 0:00:00]} 45. Qc5 {[%clk 0:00:00]}  Qa8 {[%clk 0:00:00]} 46. a4 {[%clk 0:00:00]}  Qb8 {[%clk 0:00:00]} 47. b4 {[%clk 0:00:00]}  g5 {[%clk 0:00:00]} 48. b5 {[%clk 0:00:00]}  g4 {[%clk 0:00:00]} 49. b6 {[%clk 0:00:00]}  Qe8 {[%clk 0:00:00]} 50. Qe7 {[%clk 0:00:00]}  Qf8 {[%clk 0:00:00]} 51. Qxf8+ {[%clk 0:00:00]}  Kxf8 {[%clk 0:00:00]} 52. b7 {[%clk 0:00:00]}  Ke8 {[%clk 0:00:00]} 53. b8=Q+ {[%clk 0:00:00]}  Kd7 {[%clk 0:00:00]} 54. Qb7+ {[%clk 0:00:00]}  Kd6 {[%clk 0:00:00]} 55. Qb5 {[%clk 0:00:00]}  e5 {[%clk 0:00:00]} 56. Qc5+ {[%clk 0:00:00]}  Ke6 {[%clk 0:00:00]} 57. Qc6+ {[%clk 0:00:00]}  Kf5 {[%clk 0:00:00]} 58. Qc5 {[%clk 0:00:00]}  Ke4 {[%clk 0:00:00]} 59. dxe5 {[%clk 0:00:00]}  d4 {[%clk 0:00:00]} 60. Qd6 {[%clk 0:00:00]}  d3 {[%clk 0:00:00]} 61. e6 {[%clk 0:00:00]}  d2 {[%clk 0:00:00]} 62. Qf4+ {[%clk 0:00:00]}  Kd3 {[%clk 0:00:00]} 63. Qxd2+ {[%clk 0:00:00]}  Kxd2 {[%clk 0:00:00]} 64. exf7 {[%clk 0:00:00]}  Kc3 {[%clk 0:00:00]} 65. f8=Q {[%clk 0:00:00]} 1-0


[Site "https://www.chess.com"]